Workbook

Sheet 1. Бюджет
A2: 1. Сводные данные по бюджету времени (в неделях)
A4: Курсы | B4: Обучение по дисциплинам и междисциплинарным курса | C4: Учебная практика | D4: Производственная практика | E4: Промежуточная аттестация | F4: Государственная (итоговая) аттестация | G4: Каникулы | H4: Всего (по курсам)
A5: 1 | B5: 2 | C5: 3 | D5: 4 | E5: 5 | F5: 6 | G5: 7 | H5: 8
A6: I курс | B6: =H6-C6-D6-E6-F6-G6 -> 41 | C6: 0 | D6: 0 | E6: 0 | F6: 0 | G6: 11 | H6: 52
A7: II курс | B7: 33 | C7: 4 | D7: 4 | E7: 0 | F7: 0 | G7: 11 | H7: 52
A8: III курс | B8: 23 | C8: 4 | D8: 8 | E8: 0 | F8: 6 | G8: 2 | H8: 43
A9: Всего | B9: =SUM(B6:B8) -> 97 | C9: =SUM(C6:C8) -> 8 | D9: =SUM(D6:D8) -> 12 | E9: =SUM(E6:E7) -> 0 | F9: 0 | G9: =SUM(G6:G8) -> 24 | H9: =SUM(H6:H8) -> 147

Sheet 2. Учебный план
A1: 2. УЧЕБНЫЙ ПЛАН
A2: Государственного автономного профессионального образовательного учреждения
A3: "Нурлатский аграрный техникум"
A4: по специальности среднего профессионального образования 29.02.10 Конструирование, моделирование и технология изготовления изделий легкой промышленности (по видам)
A5: по программе подготовки специалистов среднего звена
K6: Квалификация:Технолог- конструктор
K7: Форма обучения - очная
K8: Нормативный срок обучения - 2 год 10 мес.
K9: на базе основного общего образования
A10: 2. План учебного процесса, специальность 29.02.10 Конструирование, моделирование и технология изготовление изделий легкой промышленности (по видам)
A11: Индекс | B11: Наименование циклов, дисциплин, профессиональных модулей, МДК, практик | C11: Формы промежуточной аттестации | F11: Объем образовательной программы (академических часов) | P11: Распределение учебной нагрузки по курсам и семестрам (час. в семестр)
F12: ВСЕГО | G12: В форме практической подготовки | H12: Самостоятельная учебная работа | I12: Во взаимодействии с преподавателем | P12: I курс | R12: II курс | T12: III курс
I13: Нагрузка на дисциплины и МДК | M13: Учебная и производственная практика | N13: Консультации | O13: Промежуточная аттестация | P13: 1 сем. | Q13: 2 сем. | R13: 3 сем. | S13: 4 сем. | T13: 5 сем | U13: 6 сем
C14: Экзамен | D14: Дифференцированный зачет | E14: Зачет | I14: Всего учебных занятий | J14: в т.ч. по учебным дисциплинам и МДК | P14: 17 нед. | Q14: 24 нед. | R14: 17 нед=15 ТО+2 УП | S14: 24 нед.= 18ТО+2УП+4ПП | T14: 17 нед=14 ТО+2 УП+1 ПП | U14: 24 нед.= 9ТО+2УП+7ПП+ 6ГИА
J15: Теоретическое обучение | K15: Лабораторно-практические занятия | L15: курсовые работы (проекты)
A16: 1 | B16: 2 | C16: 3 | D16: 4 | E16: 5 | F16: 6 | H16: 7 | I16: 8 | J16: 9 | K16: 10 | L16: 11 | M16: 12 | N16: 13 | O16: 14 | P16: 15 | Q16: 16 | R16: 17 | S16: 18 | T16: 19 | U16: 20
A17: ОУД.00 | B17: Общеобразовательный цикл | F17: =P17+Q17 -> 1476 | H17: =H18+H31 -> 0 | I17: =I18+I31 -> 1476 | J17: 659 | K17: 769 | L17: 0 | M17: 0 | N17: 0 | O17: 48 | P17: =P18+P31 -> 612 | Q17: =Q18+Q31 -> 864 | R17: =R18+R31 -> 0 | S17: 0 | T17: =T18+T31 -> 0 | U17: 0
B18: Общие дисциплины | F18: =P18+Q18 -> 996 | G18: =G19+G20+G21+G22+G23+G24+G25+G26+G27+G28+G29+G30 -> 522 | H18: =SUM(H19:H30) -> 0 | I18: =SUM(I19:I30) -> 996 | J18: =SUM(J19:J30) -> 399 | K18: =SUM(K19:K30) -> 561 | L18: 0 | M18: 0 | N18: =SUM(N19:N30) -> 0 | O18: 36 | P18: =SUM(P19:P30) -> 424 | Q18: =SUM(Q19:Q30) -> 572 | R18: =SUM(R19:R30) -> 0 | S18: 0 | T18: =SUM(T19:T30) -> 0 | U18: 0
A19: ОУД.01 | B19: Русский язык | C19: 1 | F19: =P19+Q19 -> 72 | G19: 36 | I19: =J19+K19+N19+O19 -> 72 | J19: 30 | K19: 36 | O19: 6 | P19: 72
A20: ОУД.02 | B20: Литература | D20: 2 | F20: =P20+Q20 -> 108 | G20: 54 | I20: =J20+K20+N20+O20 -> 108 | J20: 9 | K20: 97 | O20: 2 | P20: 34 | Q20: 74
A21: ОУД.03 | B21: Иностранный язык | D21: 2 | F21: 72 | G21: 70 | I21: 72 | J21: 0 | K21: 70 | O21: 2 | P21: 34 | Q21: 38
A22: ОУД.04 | B22: История | D22: 2 | F22: 136 | G22: 46 | I22: 136 | J22: 88 | K22: 46 | O22: 2 | P22: 42 | Q22: 94
A23: ОУД.05 | B23: Обществознание | C23: 1 | F23: =P23+Q23 -> 72 | G23: 34 | I23: 72 | J23: 32 | K23: 34 | O23: 6 | P23: 72
A24: ОУД.06 | B24: Информатика | C24: 2 | F24: =P24+Q24 -> 108 | G24: 80 | I24: 108 | J24: 26 | K24: 76 | O24: 6 | P24: 34 | Q24: 74
A25: ОУД.07 | B25: Физика | D25: 2 | F25: 108 | G25: 14 | I25: 108 | J25: 92 | K25: 14 | O25: 2 | P25: 34 | Q25: 74
A26: ОУД.08 | B26: Биология | D26: 2 | F26: 72 | G26: 30 | I26: 72 | J26: 40 | K26: 30 | O26: 2 | Q26: 72
A27: ОУД.09 | B27: География | D27: 2 | F27: 72 | G27: 28 | I27: 72 | J27: 42 | K27: 28 | O27: 2 | P27: 34 | Q27: 38
A28: ОУД.10 | B28: Физическая культура | D28: 2 | E28: 1 | F28: 72 | G28: 58 | I28: 72 | J28: 12 | K28: 58 | O28: 2 | P28: 34 | Q28: 38
A29: ОУД.11 | B29: Основы безопасности и защиты Родины | D29: 2 | F29: 68 | G29: 46 | I29: 68 | J29: 20 | K29: 46 | O29: 2 | P29: 34 | Q29: 34
A30: ОУД.12 | B30: Родная литература | D30: 2 | F30: =P30+Q30 -> 36 | G30: 26 | I30: =J30+K30+N30+O30 -> 36 | J30: 8 | K30: 26 | O30: 2 | Q30: 36
B31: Дисциплины для углубленного изучения | F31: =P31+Q31 -> 480 | G31: =G32+G33 -> 208 | H31: =SUM(H32:H33) -> 0 | I31: =SUM(I32:I33) -> 480 | J31: 260 | K31: 208 | L31: 0 | M31: 0 | N31: 0 | O31: 12 | P31: =SUM(P32:P33) -> 188 | Q31: 292 | R31: 0 | S31: 0 | T31: 0 | U31: 0
A32: ОУД.13 | B32: Математика | C32: 2 | F32: =P32+Q32 -> 340 | G32: 114 | I32: =J32+K32+N32+O32 -> 340 | J32: 220 | K32: 114 | O32: 6 | P32: 136 | Q32: 204
A33: ОУД.14 | B33: Химия | C33: 2 | F33: =P33+Q33 -> 140 | G33: 94 | I33: =J33+K33+N33+O33 -> 140 | J33: 40 | K33: 94 | O33: 6 | P33: 52 | Q33: 88
B34: Индивидуальный проект (предметом не являетя) | F34: 0
A35: СГ.00 | B35: Социально-гуманитарный цикл | F35: =R35+S35+T35+U35 -> 442 | G35: =G36+G37+G38+G39+G40 -> 312 | H35: =SUM(H36:H40) -> 20 | I35: =SUM(I36:I40) -> 422 | J35: =SUM(J36:J40) -> 100 | K35: =SUM(K36:K40) -> 312 | L35: =SUM(L36:L40) -> 0 | M35: 0 | N35: 0 | O35: 10 | P35: =SUM(P36:P40) -> 0 | Q35: =SUM(Q36:Q40) -> 0 | R35: =SUM(R36:R40) -> 168 | S35: =SUM(S36:S40) -> 100 | T35: =SUM(T36:T40) -> 112 | U35: =SUM(U36:U40) -> 62
A36: СГ.01 | B36: История России | D36: 3 | F36: =R36+S36 -> 48 | G36: 12 | H36: 2 | I36: =J36+K36+N36+O36 -> 46 | J36: 32 | K36: 12 | O36: 2 | R36: 48
A37: СГ.02 | B37: Иностранный язык в профессиональной деятельности | D37: 6 | F37: =R37+S37+T37+U37 -> 138 | G37: 122 | H37: 6 | I37: =J37+K37+N37+O37 -> 132 | J37: 8 | K37: 122 | O37: 2 | R37: 40 | S37: 30 | T37: 38 | U37: 30
A38: СГ.03 | B38: Безопасность жизнедеятельности | D38: 4 | F38: =R38+S38 -> 68 | G38: 48 | H38: 4 | I38: =J38+K38+N38+O38 -> 64 | J38: 14 | K38: 48 | O38: 2 | R38: 34 | S38: 34
A39: СГ.04 | B39: Физическая культура | D39: 6 | E39: 3,4,5 | F39: =R39+S39+T39+U39 -> 150 | G39: 122 | H39: 6 | I39: 144 | J39: 20 | K39: 122 | O39: 2 | R39: 46 | S39: 36 | T39: 36 | U39: 32
A40: СГ.05 | B40: Основы финансовой грамотности | D40: 5 | F40: =R40+S40+T40+U40 -> 38 | G40: 8 | H40: 2 | I40: 36 | J40: 26 | K40: 8 | O40: 2 | T40: 38
A41: ОП.00 | B41: Общепрофессиональный цикл | F41: =R41+S41+T41+U41 -> 408 | G41: =G42+G43+G44+G45+G46+G47+G48 -> 208 | H41: =SUM(H42:H48) -> 22 | I41: 386 | J41: 164 | K41: =SUM(K42:K48) -> 208 | L41: =SUM(L42:L48) -> 0 | M41: 0 | N41: =SUM(N42:N48) -> 0 | O41: =SUM(O42:O48) -> 14 | P41: =SUM(P42:P48) -> 0 | Q41: 0 | R41: =SUM(R42:R48) -> 184 | S41: =SUM(S42:S48) -> 0 | T41: =SUM(T42:T48) -> 136 | U41: =SUM(U42:U48) -> 88
A42: ОП.01 | B42: Материаловедение | D42: 3 | F42: =R42+S42+T42+U42 -> 48 | G42: 26 | H42: 2 | I42: =J42+K42+N42+O42 -> 46 | J42: 18 | K42: 26 | O42: 2 | R42: 48
A43: ОП.02 | B43: Спецрисунок и художественная графика | C43: 3 | F43: 68 | G43: 52 | H43: 4 | I43: 64 | J43: 10 | K43: 52 | O43: 2 | R43: 68
A44: ОП.03 | B44: Прикладные компьютерные программы в профессиональной деятельности | D44: 6 | F44: 80 | G44: 66 | H44: 4 | I44: 76 | J44: 8 | K44: 66 | O44: 2 | T44: 40 | U44: 40
A45: ОП.04 | B45: Охрана труда | D45: 5 | F45: 48 | G45: 12 | H45: 2 | I45: 46 | J45: 32 | K45: 12 | O45: 2 | T45: 48
A46: ОП.05 | B46: Правовое обеспечение профессиональной деятельности | D46: 6 | F46: 48 | G46: 12 | H46: 2 | I46: 46 | J46: 32 | K46: 12 | O46: 2 | U46: 48
A47: ОП.06 | B47: Метрология, стандартизация и подтверждение качества | C47: 3 | F47: 68 | G47: 24 | H47: 6 | I47: 62 | J47: 36 | K47: 24 | O47: 2 | R47: 68
A48: ОП.07 | B48: Татарский язык в профессиональной деятельности | D48: 5 | F48: 48 | G48: 16 | H48: 2 | I48: 46 | J48: 28 | K48: 16 | O48: 2 | T48: 48
A49: П.00 | B49: Профессиональный цикл | F49: =R49+S49+T49+U49 -> 1742 | G49: =G50+G56+G62+G67 -> 1188 | H49: =H50+H56+H62+H67 -> 40 | I49: 1120 | J49: 446 | K49: 532 | L49: 80 | M49: 576 | N49: 10 | O49: 52 | P49: 0 | Q49: 0 | R49: 260 | S49: 764 | T49: =T50+T56++T62+T67 -> 364 | U49: =U50+U56++U62+U67 -> 354
A50: ПМ.01 | B50: Художественное проектирование швейных изделий | F50: =R50+S50 -> 460 | G50: =G51+G52+G53+G54 -> 334 | H50: =SUM(H51:H55) -> 14 | I50: 302 | J50: 96 | K50: 190 | L50: 0 | M50: 144 | N50: 2 | O50: 14 | P50: =SUM(P51:P56) -> 0 | Q50: =SUM(Q51:Q56) -> 0 | R50: =SUM(R51:R55) -> 104 | S50: =SUM(S51:S55) -> 356 | T50: =SUM(T51:T55) -> 0 | U50: =SUM(U51:U55) -> 0
A51: МДК.01.01 | B51: Основы художественного проектирования швейных изделий | C51: 4 | F51: =R51+S51+T51+U51 -> 224 | G51: 134 | H51: 10 | I51: =J51+K51+N51+O51 -> 214 | J51: 72 | K51: 134 | N51: 2 | O51: 6 | R51: 68 | S51: 156
A52: МДК.01.02 | B52: Макетирование швейных изделий | D52: 4 | F52: =R52+S52+T52+U52 -> 86 | G52: 56 | H52: 4 | I52: =J52+K52+N52+O52 -> 82 | J52: 24 | K52: 56 | O52: 2 | S52: 86
A53: УП.01 | B53: Учебная практика | D53: 4 | F53: 72 | G53: 72 | M53: 72 | R53: 36 | S53: 36
A54: ПП.01 | B54: Производственная практика | F54: 72 | G54: 72 | M54: 72 | S54: 72
A55: ПМ.01.Э | B55: Экзамен по модулю | C55: 4 | F55: 6 | I55: 6 | O55: 6 | S55: 6
A56: ПМ.02 | B56: Конструирование и моделирование швейных изделий | F56: =R56+S56+T56+U56 -> 530 | G56: =G57+G58+G59+G60 -> 360 | H56: =SUM(H57:H61) -> 12 | I56: =SUM(I57:I61) -> 374 | J56: 136 | K56: 176 | L56: 40 | M56: 144 | N56: 4 | O56: 18 | P56: =SUM(P57:P61) -> 0 | Q56: =SUM(Q57:Q61) -> 0 | R56: =SUM(P57:R61) -> 48 | S56: =SUM(S57:S61) -> 112 | T56: =SUM(T57:T61) -> 186 | U56: =SUM(U57:U61) -> 184
A57: МДК.02.01 | B57: Основы конструирования и моделирования швейных изделий | C57: 6 | F57: =R57+S57+T57+U57 -> 312 | G57: 186 | H57: 8 | I57: =J57+K57+L57+N57+O57 -> 304 | J57: 110 | K57: 146 | L57: 40 | N57: 2 | O57: 6 | R57: 48 | S57: 78 | T57: 116 | U57: 70
A58: МДК.02.02 | B58: Использование САПР для конструирования и моделирования швейных изделий | C58: 5 | F58: =R58+S58+T58+U58 -> 68 | G58: 30 | H58: 4 | I58: =J58+K58+L58+N58+O58 -> 64 | J58: 26 | K58: 30 | N58: 2 | O58: 6 | S58: 34 | T58: 34
A59: УП.02 | B59: Учебная практика | D59: 6 | F59: 72 | G59: 72 | M59: 72 | T59: 36 | U59: 36
A60: ПП.02 | B60: Производственная практика | F60: 72 | G60: 72 | M60: 72 | U60: 72
A61: ПМ.02.Э | B61: Экзамен по модулю | C61: 6 | F61: 6 | I61: 6 | O61: 6 | U61: 6
A62: ПМ.03 | B62: Разработка технологических процессов производства швейных изделий | F62: 404 | G62: =G63+G64+G65 -> 282 | H62: =SUM(H63:H66) -> 6 | I62: 248 | J62: 102 | K62: 98 | L62: 40 | M62: 144 | N62: 2 | O62: 6 | P62: 0 | Q62: 0 | R62: 0 | S62: 56 | T62: 178 | U62: 170
A63: МДК.03.01 | B63: Проектирование технологических процессов швейного производства | C63: 6 | F63: 254 | G63: 138 | H63: 6 | I63: =J63+K63+L63+N63+O63 -> 248 | J63: 102 | K63: 98 | L63: 40 | N63: 2 | O63: 6 | S63: 56 | T63: 106 | U63: 92
A64: УП.03 | B64: Учебная практика | D64: 6 | F64: 72 | G64: 72 | M64: 72 | T64: 36 | U64: 36
A65: ПП.03 | B65: Производственная практика | F65: 72 | G65: 72 | M65: 72 | T65: 36 | U65: 36
A66: ПМ.03 Э | B66: Экзамен по модулю | C66: 6 | F66: 6 | U66: 6
A67: ПМ.04 | B67: Выполнение работ по профессии 16909 Портной | F67: 348 | G67: =G68+G69+G70+G71 -> 212 | H67: =SUM(H68:H72) -> 8 | I67: 196 | J67: 112 | K67: 68 | L67: 0 | M67: 144 | N67: 2 | O67: 14 | P67: 0 | Q67: 0 | R67: 108 | S67: 240 | T67: 0 | U67: 0
A68: МДК.04.01 | B68: Технология изготовления изделий | C68: 4 | F68: 142 | G68: 54 | H68: 4 | I68: =J68+K68+N68+O68 -> 138 | J68: 76 | K68: 54 | N68: 2 | O68: 6 | R68: 50 | S68: 92
A69: МДК 04.02 | B69: Оборудование швейного производства | D69: 4 | F69: 56 | G69: 14 | H69: 4 | I69: =J69+K69+N69+O69 -> 52 | J69: 36 | K69: 14 | O69: 2 | R69: 22 | S69: 34
A70: УП.04 | B70: Учебная практика | D70: 4 | F70: 72 | G70: 72 | M70: 72 | R70: 36 | S70: 36
A71: ПП.04 | B71: Производственная практика | F71: 72 | G71: 72 | M71: 72 | S71: 72
A72: КЭ.04. | B72: Экзамен по модулю | C72: 4 | F72: 6 | I72: 6 | O72: 6 | S72: 6
A73: ПДП | B73: Преддипломная практика | F73: =P73+Q73+T73+U73 -> 144 | U73: 144
A74: ГИА | B74: Государственная итоговая аттестация | F74: 216 | U74: 216
F75: =P75+Q75+R75+S75+T75+U75 -> 4428 | P75: =P17+P35+P41+P49 -> 612 | Q75: =Q17+Q35+Q41+Q49 -> 864 | R75: =R17+R35+R41+R49 -> 612 | S75: =S17+S35+S41+S49 -> 864 | T75: =T17+T35+T41+T49 -> 612 | U75: =U17+U35+U41+U49+U73+U74 -> 864
B76: Итого | F76: =F17+F35+F41+F49+F73+F74 -> 4428 | H76: =H17+H35+H41+H49+H73+H74 -> 82 | I76: 3404 | J76: 1369 | K76: 1821 | L76: 80 | M76: 576 | N76: 10 | O76: 124 | P76: 612 | Q76: 864 | R76: 612 | S76: 864 | T76: 612 | U76: 864
I77: Всего: | J77: дисциплин и МДК | P77: 612 | Q77: 864 | R77: 540 | S77: 648 | T77: 504 | U77: 324
A78: Государственная итоговая аттестация: | J78: учебной практики | P78: 0 | Q78: 0 | R78: 72 | S78: 72 | T78: 72 | U78: 72
A79: 1.1 Выполнение димпломной работы с 18 мая по 14 июня (всего 4 нед.) Защита дипломной работы с 15 июня по 30 июня (всего 2 нед.) | J79: производственной практики | P79: 0 | Q79: 0 | R79: 0 | S79: 144 | T79: 36 | U79: 252
J80: экзаменов | P80: 2 | Q80: 3 | R80: 2 | S80: 4 | T80: 1 | U80: 4
A81: 1.2.Демонстрационный экзамен | J81: дифференцированных зачетов | P81: 0 | Q81: 9 | R81: 3 | S81: 5 | T81: 2 | U81: 6
J82: зачетов | P82: 1 | Q82: 0 | R82: 0 | S82: 0 | T82: 0 | U82: 0

Sheet 3. Перечень
A1: 3. Перечень кабинетов, лабораторий, мастерских и других помещений
A2: для подготовки по специальности СПО
A3: 29.02.10 Конструирование, моделирование и технология изготовление изделий легкой промышленности (по видам)
A5: № | B5: Наименование
A6: Кабинеты:
A7: 1 | B7: Русского языка, литературы
A8: 2 | B8: Иностранного языка
A9: 3 | B9: Истории, обществознания
A10: 4 | B10: Математики, физики
A11: 5 | B11: Химии, биологии, географии
A12: 6 | B12: Информатики
A13: 7 | B13: Родного языка и литературы
A14: 8 | B14: Безопасности жизнедеятельности и охраны труда
A15: 9 | B15: Социально-экономических дисциплин
A16: 10 | B16: Материаловедения
A17: 11 | B17: Конструирования и моделирования швейных изделий
A18: 12 | B18: Разработки технологических процессов производства швейных изделий
A19: 13 | B19: Художественного проектирования швейных изделий
B20: Лаборатории:
A21: 1 | B21: Компьютерной графики
A22: 2 | B22: Автоматизированного проектирования швейных изделий
A23: Мастерские:
A24: 1 | B24: Швейная
A25: Спортивный комплекс
A26: 1 | B26: Спортивный зал
A27: Залы:
A28: 1 | B28: Библиотека, читальный зал с выходом в сеть Интернет
A29: 2 | B29: Актовый зал

Sheet 4. Кален уч гр
B2: Календарный учебный график группы 357 29.02.10 Конструирование, моделирование и технология изготовления изделий легкой промышленности (по видам)
A6: Курсы | B6: Сентябрь | F6: 29 | G6: Октябрь | J6: 27 | L6: Ноябрь | P6: Декабрь | T6: 29 | U6: Январь | X6: 26 | Y6: Февраль | AB6: 23 | AC6: Март | AG6: 30 | AH6: Апрель | AK6: 27 | AL6: Май | AQ6: Июнь | AU6: 29 | AV6: Июль | AY6: 27 | AZ6: Август
B7: 1 | C7: 8 | D7: 15 | E7: 22 | F7: 5 | G7: 6 | H7: 13 | I7: 20 | J7: 2 | L7: 3 | M7: 10 | N7: 17 | O7: 24 | P7: 1 | Q7: 8 | R7: 15 | S7: 22 | T7: 4 | U7: 5 | V7: 12 | W7: 19 | X7: 1 | Y7: 2 | Z7: 9 | AA7: 16 | AB7: 1 | AC7: 2 | AD7: 9 | AE7: 16 | AF7: 23 | AG7: 5 | AH7: 6 | AI7: 13 | AJ7: 20 | AK7: 3 | AL7: 4 | AN7: 11 | AO7: 18 | AP7: 25 | AQ7: 1 | AR7: 8 | AS7: 15 | AT7: 22 | AU7: 5 | AV7: 6 | AW7: 13 | AX7: 20 | AY7: 2 | AZ7: 3 | BA7: 10 | BB7: 17 | BC7: 24
B8: 7 | C8: 14 | D8: 21 | E8: 28 | G8: 12 | H8: 19 | I8: 26 | L8: 9 | M8: 16 | N8: 23 | O8: 30 | P8: 7 | Q8: 14 | R8: 21 | S8: 28 | U8: 11 | V8: 18 | W8: 25 | Y8: 8 | Z8: 15 | AA8: 22 | AC8: 8 | AD8: 15 | AE8: 22 | AF8: 29 | AH8: 12 | AI8: 19 | AJ8: 26 | AL8: 10 | AN8: 17 | AO8: 24 | AP8: 31 | AQ8: 7 | AR8: 14 | AS8: 21 | AT8: 28 | AV8: 12 | AW8: 19 | AX8: 26 | AZ8: 9 | BA8: 16 | BB8: 23 | BC8: 31
A9: 1 | T9: = | U9: = | AU9: = | AV9: = | AW9: = | AX9: = | AY9: = | AZ9: = | BA9: = | BB9: = | BC9: =
A10: 2 | B10: оу | C10: оу | D10: оу | E10: оу | F10: оу | G10: оу | H10: оу | I10: оу | J10: оу | L10: оу | M10: оу | N10: оу | O10: оу | P10: оу | Q10: оу | R10: оу | S10: оу | T10: = | U10: = | V10: оу | W10: оу | X10: оу | Y10: оу | Z10: оу | AA10: оу | AB10: оу | AC10: оу | AD10: оу | AE10: оу | AF10: оу | AG10: оу | AH10: оу | AI10: оу | AJ10: оу | AK10: оу | AL10: оу | AN10: оу | AO10: оу | AP10: оу | AQ10: S | AR10: S | AS10: S | AT10: S | AU10: = | AV10: = | AW10: = | AX10: = | AY10: = | AZ10: = | BA10: = | BB10: = | BC10: =
A11: 3 | B11: оу | C11: оу | D11: оу | E11: оу | F11: оу | G11: оу | H11: оу | I11: оу | J11: оу | K11: оу | L11: оу | M11: оу | N11: оу | O11: оу | P11: оу | Q11: оу | R11: оу | S11: S | T11: = | U11: = | V11: оу | W11: оу | X11: оу | Y11: оу | Z11: оу | AA11: оу | AB11: оу | AC11: оу | AD11: оу | AE11: оу | AF11: оу | AG11: X | AH11: X | AI11: X | AJ11: X | AK11: X | AL11: X | AN11: X | AO11: R | AP11: R | AQ11: R | AR11: R | AS11: R | AT11: R
B12: 1 | C12: 2 | D12: 3 | E12: 4 | F12: 5 | G12: 6 | H12: 7 | I12: 8 | J12: 9 | L12: 10 | M12: 11 | N12: 12 | O12: 13 | P12: 14 | Q12: 15 | R12: 16 | S12: 17 | T12: 18 | U12: 19 | V12: 20 | W12: 21 | X12: 22 | Y12: 23 | Z12: 24 | AA12: 25 | AB12: 26 | AC12: 27 | AD12: 28 | AE12: 29 | AF12: 30 | AG12: 31 | AH12: 32 | AI12: 33 | AJ12: 34 | AK12: 35 | AL12: 36 | AN12: 37 | AO12: 38 | AP12: 39 | AQ12: 40 | AR12: 41 | AS12: 42 | AT12: 43 | AU12: 44 | AV12: 45 | AW12: 46 | AX12: 47 | AY12: 48 | AZ12: 49 | BA12: 50 | BB12: 51 | BC12: 52
I14: Учебная практика | V14: Производственная практика
H15: (производственное обучение) | U15: (по профилю специальности)
G17: оу | N17: о | Z17: S | AF17: Х | AN17: : : | AS17: = | AY17: R
A20: Теоретическое обучение | F20: Параллельно с теоретическим обучением | M20: Концентрирован-но | Y20: Концентрирован-но | AE20: Производственная практика (преддипломная) | AK20: Промежуточная аттестация | AR20: Каникулы | AX20: Государственная итоговая аттестация
